bitfinex-derivatives/quotes_SOLF0:USTF0_20240815
["timestamp","ask_amount","ask_price","bid_price","bid_amount"]
[1723703745976,3.5295,141.65,141.58,5.4]
[1723703745977,3.53,141.63,141.59,3.5309]
[1723703746179,3.53,141.63,141.61,0.05420047]
[1723703747289,3.5303,141.62,141.61,0.05420047]
[1723703747783,0.04559131,141.64,141.61,0.05420047]
[1723703747978,3.5301,141.63,141.61,0.05420047]
[1723703748387,5.44559131,141.64,141.61,0.05420047]
[1723703749585,8.97549131,141.64,141.61,0.05420047]
[1723703749884,5.44559131,141.64,141.61,0.05420047]
[1723703750480,3.53,141.63,141.61,0.05420047]
[1723703750689,5.44559131,141.64,141.61,0.05420047]
[1723703750879,3.53,141.63,141.61,0.05420047]
[1723703751881,8.97549131,141.64,141.61,0.05420047]
[1723703752187,3.57549131,141.64,141.61,0.05420047]
[1723703752584,3.57549131,141.64,141.61,3.58470047]
[1723703752585,0.04559131,141.64,141.61,3.58470047]
[1723703752787,0.04559131,141.64,141.61,0.05420047]
[1723703753186,0.04559131,141.64,141.62,3.5301]
[1723703753786,0.04559131,141.64,141.61,0.05420047]
[1723703754287,0.04559131,141.64,141.62,3.5303]
[1723703754592,0.04559131,141.64,141.61,0.05420047]
[1723703755089,0.04559131,141.64,141.62,3.5303]
[1723703755278,0.04559131,141.64,141.61,0.05420047]
[1723703755479,0.04559131,141.64,141.62,3.52280825]
[1723703755685,0.04559131,141.64,141.63,3.53]
[1723703760583,0.04559131,141.64,141.61,35.20880047]
[1723703760987,0.04559131,141.64,141.63,3.53]
[1723703762385,5.4,141.69,141.62,3.53325331]
[1723703762584,5.4,141.69,141.61,35.1546]
[1723703762791,3.5283,141.7,141.61,35.1546]
[1723703762991,7.9542,141.73,141.61,35.1546]
[1723703763688,0.04727234,141.68,141.66,0.04623174]
[1723703764080,7.9542,141.73,141.66,0.04623174]
[1723703764479,0.05056352,141.68,141.66,0.04623174]
[1723703764679,3.5287,141.69,141.66,0.04623174]
[1723703764878,0.05120035,141.68,141.66,0.04623174]
[1723703765285,3.5282,141.71,141.66,0.04623174]
[1723703765480,0.04956174,141.68,141.66,0.04623174]
[1723703765684,0.04956174,141.68,141.66,3.57543174]
[1723703765890,0.04956174,141.68,141.66,0.04623174]
[1723703766192,0.04956174,141.68,141.66,3.57533174]
[1723703766587,0.04956174,141.68,141.66,0.04623174]
[1723703768891,27.13956174,141.68,141.66,0.04623174]
[1723703769487,3.529,141.67,141.66,0.04623174]
[1723703770186,32.53956174,141.68,141.66,0.04623174]
[1723703770593,36.06836174,141.68,141.66,0.04623174]
[1723703770994,5.44956174,141.68,141.66,0.04623174]
[1723703771195,0.04956174,141.68,141.67,3.529]
[1723703771691,0.04956174,141.68,141.66,0.04623174]
[1723703771990,0.04956174,141.68,141.66,27.13623174]
[1723703772187,0.04956174,141.68,141.67,3.529]
[1723703772992,0.04956174,141.68,141.66,3.57543174]
[1723703774393,0.04956174,141.68,141.67,3.529]
[1723703775392,5.4,141.73,141.7,3.5282]
[1723703775593,35.1173,141.75,141.7,3.5282]
[1723703776199,35.1173,141.75,141.69,3.5285]
[1723703776401,35.1173,141.75,141.64,33.87]
[1723703776594,0.04846309,141.73,141.71,0.05402309]
[1723703776900,0.04846309,141.73,141.64,33.87]
[1723703777296,35.1173,141.75,141.71,0.05181122]
[1723703777798,0.04906253,141.7,141.64,33.87]
[1723703778201,0.04906253,141.7,141.69,3.5284]
[1723703778599,35.1173,141.75,141.69,3.5284]
[1723703778795,229.57424414,141.84,141.68,33.87]
[1723703778999,6.724,141.81,141.71,33.87]
[1723703779194,6.724,141.81,141.72,3.56729091]
[1723703779503,0.05369047,141.77,141.75,3.5269]
[1723703779806,0.05369047,141.77,141.75,3.57312782]
[1723703780007,0.05369047,141.77,141.76,3.5268]
[1723703781095,1.2743,141.83,141.79,3.526]
[1723703781299,1.2743,141.83,141.75,33.91622782]
[1723703781499,4.7995,141.83,141.75,33.87]
[1723703781700,4.7995,141.83,141.78,3.5261]
[1723703781905,1.2743,141.83,141.75,33.87]
[1723703782199,5.4,141.85,141.79,3.5259]
[1723703782593,0.04767789,141.8,141.79,3.5259]
[1723703783005,3.5249,141.84,141.79,3.5259]
[1723703783203,0.04516951,141.81,141.79,3.5259]
[1723703783506,0.04516951,141.81,141.8,3.5258]
[1723703784100,0.04516951,141.81,141.79,3.5259]
[1723703784301,0.04516951,141.81,141.78,0.04855268]
[1723703785707,0.04516951,141.81,141.78,3.57475268]
[1723703786996,0.04516951,141.81,141.78,0.04855268]
[1723703787823,0.04516951,141.81,141.8,3.5258]
[1723703789001,0.04516951,141.81,141.78,0.04855268]
[1723703789608,0.04516951,141.81,141.8,3.5258]
[1723703799317,0.04516951,141.81,141.78,0.04855268]
[1723703800213,3.526,141.79,141.78,0.04855268]
[1723703800914,0.04516951,141.81,141.78,0.04855268]
[1723703802214,0.04516951,141.81,141.8,3.5258]
[1723703803419,0.04516951,141.81,141.78,0.04855268]
[1723703804611,0.04516951,141.81,141.79,3.5259]
[1723703806215,0.04516951,141.81,141.78,0.04855268]
[1723703808621,2.68256951,141.81,141.78,0.04855268]
[1723703808820,37.87156951,141.81,141.73,3.5275]
[1723703809117,37.8264,141.81,141.73,3.5275]
[1723703809314,3.5264,141.78,141.71,8.91456283]
[1723703810018,0.04838794,141.76,141.73,3.57953795]
[1723703810215,0.04838794,141.76,141.73,0.05213795]
[1723703811519,5.4,141.75,141.66,33.87]
[1723703811819,3.5277,141.73,141.68,3.5287]
[1723703812022,8.0879,141.75,141.66,33.87]
[1723703812320,8.0879,141.75,141.67,3.5289]
[1723703812321,3.5279,141.72,141.67,3.5289]
[1723703812920,0.04643007,141.71,141.68,0.05228408]
[1723703813115,0.04643007,141.71,141.61,33.87]
[1723703813315,5.4,141.7,141.61,33.87]
[1723703813714,8.9284,141.7,141.61,33.87]
[1723703814311,0.0537592,141.67,141.65,3.5294]
[1723703815419,0.0537592,141.67,141.65,3.5295]
[1723703815618,0.0537592,141.67,141.64,0.04505722]
[1723703816020,0.0537592,141.67,141.66,3.5293]
[1723703816720,5.4,141.73,141.68,3.5286]
[1723703818016,5.4,141.73,141.69,0.04844962]
[1723703818213,0.04602961,141.72,141.69,0.04844962]
[1723703818819,3.57392961,141.72,141.69,0.04844962]
[1723703819018,0.04602961,141.72,141.69,0.04844962]
[1723703820520,3.57402961,141.72,141.69,0.04844962]
[1723703821123,0.04602961,141.72,141.69,0.04844962]
[1723703821720,3.5283,141.7,141.69,0.04844962]
[1723703821920,33.91602961,141.72,141.65,3.5294]
[1723703822328,3.5283,141.7,141.65,3.5294]
[1723703822519,33.87,141.72,141.62,1.272]
[1723703822719,33.87,141.72,141.63,33.87]
[1723703822917,5.4,141.73,141.67,3.5288]
[1723703823319,5.4,141.73,141.65,33.87]
[1723703823527,3.5278,141.72,141.65,33.87]
[1723703823725,5.4,141.73,141.65,33.87]
[1723703823930,3.57773089,141.69,141.66,0.05045583]
[1723703824129,0.04913089,141.69,141.66,0.05045583]
[1723703824430,0.04913089,141.69,141.66,3.57975583]
[1723703824825,0.04913089,141.69,141.66,0.05045583]
[1723703825525,3.529,141.68,141.66,0.05045583]
[1723703827121,0.04913089,141.69,141.59,33.87]
[1723703827322,6.682,141.68,141.59,33.87]
[1723703827636,8.0099,141.68,141.6,3.5306]
[1723703827931,27.12,141.67,141.6,3.5306]
[1723703828126,3.5298,141.64,141.6,3.5306]
[1723703828433,27.12,141.67,141.62,0.05403938]
[1723703828635,3.53,141.63,141.62,0.05403938]
[1723703829033,3.53,141.63,141.59,3.5309]
[1723703829542,3.53,141.63,141.61,0.05068095]
[1723703829835,3.57989885,141.64,141.61,0.05068095]
[1723703830232,0.04999885,141.64,141.61,0.05068095]
[1723703831441,0.04999885,141.64,141.62,3.5301]
[1723703832145,0.04999885,141.64,141.61,3.58098095]
[1723703832337,0.04999885,141.64,141.61,0.05068095]
[1723703832743,0.04999885,141.64,141.62,3.5301]
[1723703833140,0.04999885,141.64,141.61,0.05068095]
[1723703833342,0.04999885,141.64,141.61,33.95068095]
[1723703833536,0.04999885,141.64,141.61,0.05068095]
[1723703833740,5.4,141.63,141.61,0.05068095]
[1723703833942,8.9303,141.63,141.61,0.05068095]
[1723703835046,3.5303,141.62,141.61,0.05068095]
[1723703835445,5.4,141.63,141.61,0.05068095]
[1723703835646,8.9302,141.63,141.61,0.05068095]
[1723703836049,5.4,141.63,141.61,0.05068095]
[1723703836246,5.44999885,141.64,141.61,0.05068095]
[1723703836748,5.44999885,141.64,141.63,3.53]
[1723703837047,0.04999885,141.64,141.63,3.53]
[1723703837241,0.04999885,141.64,141.61,3.58098095]
[1723703837438,0.04999885,141.64,141.61,0.05068095]
[1723703837845,0.04999885,141.64,141.61,3.58098095]
[1723703838147,0.04999885,141.64,141.61,0.05068095]
[1723703838349,0.04999885,141.64,141.63,3.53]
[1723703839148,1.2726,141.73,141.63,33.9]
[1723703839747,1.2726,141.73,141.67,3.529]
[1723703840344,1.2721,141.74,141.63,33.9]
[1723703840546,0.05412589,141.71,141.69,0.05121251]
[1723703840942,0.05412589,141.71,141.69,3.57961251]
[1723703841148,0.05412589,141.71,141.69,0.05121251]
[1723703842351,0.05412589,141.71,141.69,3.57961251]
[1723703842753,0.05412589,141.71,141.69,0.05121251]
[1723703843956,0.05412589,141.71,141.69,3.57951251]
[1723703844849,0.05412589,141.71,141.69,0.05121251]
[1723703852756,0.05412589,141.71,141.69,3.57961251]
[1723703853259,0.05412589,141.71,141.69,0.05121251]
[1723703857156,0.05412589,141.71,141.69,3.57961251]
[1723703857354,0.05412589,141.71,141.69,0.05121251]
[1723703859456,3.58232589,141.71,141.69,0.05121251]
[1723703859854,0.05412589,141.71,141.69,0.05121251]
[1723703862061,0.05412589,141.71,141.69,3.57961251]
[1723703865160,3.58212589,141.71,141.69,0.05121251]
[1723703865360,0.05412589,141.71,141.69,0.05121251]
[1723703865966,3.5283,141.7,141.69,0.05121251]
[1723703866256,3.48966052,141.74,141.6,27.12]
[1723703866459,27.12,141.73,141.63,27.12]
[1723703866668,30.68235443,141.73,141.63,27.12]
[1723703867054,30.68235443,141.73,141.66,3.5291]
[1723703867055,3.5283,141.7,141.66,3.5291]
[1723703867259,0.05363422,141.69,141.67,0.04586116]
[1723703868759,0.05363422,141.69,141.68,3.5288]
[1723703872259,0.05363422,141.69,141.67,0.04586116]
[1723703872767,0.05363422,141.69,141.67,3.57486116]
[1723703873070,0.05363422,141.69,141.67,0.04586116]
[1723703875462,0.05363422,141.69,141.67,3.57486116]
[1723703875966,0.05363422,141.69,141.67,27.16586116]
[1723703876169,0.05363422,141.69,141.68,3.5288]
[1723703876372,0.05363422,141.69,141.67,27.16586116]
[1723703876373,3.5272,141.75,141.67,27.16586116]
[1723703876564,3.5272,141.75,141.67,27.12]
[1723703876967,3.5272,141.75,141.7,3.5281]
[1723703877365,7.0476,141.89,141.71,27.12]
[1723703877564,7.82316069,141.81,141.74,3.5271]
[1723703877966,3.57917718,141.79,141.74,3.5271]
[1723703878267,3.57917718,141.79,141.76,0.04662106]
[1723703879777,3.5263,141.78,141.76,0.04662106]
[1723703880474,3.5265,141.77,141.76,0.04662106]
[1723703881462,3.5264,141.78,141.76,0.04662106]
[1723703881675,0.05297718,141.79,141.76,0.04662106]
[1723703882171,3.5265,141.77,141.76,0.04662106]
[1723703883163,11.35130991,141.77,141.76,0.04662106]
[1723703883475,3.5275,141.74,141.69,27.12]
[1723703883774,27.12,141.78,141.67,1.3086]
[1723703883775,2.4707,141.77,141.67,1.3086]
[1723703884162,34.9422697,141.76,141.67,1.3086]
[1723703884366,0.04953198,141.73,141.7,0.05299002]
[1723703884972,3.5279,141.72,141.7,0.05299002]
[1723703885166,27.12,141.72,141.7,0.05299002]
[1723703885969,3.528,141.71,141.7,0.05299002]
[1723703886169,0.04953198,141.73,141.7,0.05299002]
[1723703887872,3.5279,141.72,141.7,0.05299002]
[1723703889070,3.528,141.71,141.7,0.05299002]
[1723703890470,3.5279,141.72,141.7,0.05299002]
[1723703891276,8.95713198,141.73,141.7,0.05299002]
[1723703891479,5.42953198,141.73,141.7,0.05299002]
[1723703891976,3.528,141.72,141.7,0.05299002]
[1723703894477,3.528,141.71,141.7,0.05299002]
[1723703897375,3.5278,141.72,141.7,0.05299002]
[1723703897580,5.42953198,141.73,141.7,0.05299002]
[1723703898774,8.95723198,141.73,141.7,0.05299002]
[1723703898983,5.42953198,141.73,141.7,0.05299002]
[1723703899883,3.5278,141.72,141.7,0.05299002]
[1723703900079,5.42953198,141.73,141.7,0.05299002]
[1723703900680,0.04953198,141.73,141.71,3.528]
[1723703900883,0.04953198,141.73,141.7,0.05299002]
[1723703901079,0.04953198,141.73,141.7,3.85079002]
[1723703901482,0.04953198,141.73,141.71,3.5278]
[1723703902390,0.04953198,141.73,141.72,3.5278]
[1723703903393,7.82251968,141.78,141.71,27.12]
[1723703903592,226.0,141.82,141.74,27.12]
[1723703903896,3.526,141.79,141.76,3.5266]
[1723703904487,5.38,141.84,141.76,27.12]
[1723703904781,0.04972697,141.79,141.76,27.16562533]
[1723703904988,0.04972697,141.79,141.78,3.5261]
[1723703905384,0.04972697,141.79,141.77,1.2391]
[1723703905794,0.04972697,141.79,141.78,3.5263]
[1723703909492,0.04972697,141.79,141.76,0.04562533]
[1723703909693,27.12,141.77,141.76,0.04562533]
[1723703910086,27.12,141.77,141.67,30.9898]
[1723703910292,1.246,141.78,141.67,3.8698]
[1723703910293,27.12,141.73,141.67,3.8698]
[1723703910691,3.5279,141.72,141.67,7.3987]
[1723703910994,27.12,141.75,141.67,3.8698]
[1723703911183,27.12,141.75,141.69,3.5284]
[1723703911184,3.5277,141.73,141.69,3.5284]
[1723703911386,27.12,141.75,141.69,3.5284]
[1723703911387,0.05434798,141.71,141.69,3.5284]
[1723703911689,0.05434798,141.71,141.68,0.04537948]
[1723703911690,0.05434798,141.71,141.7,3.5283]
[1723703912290,0.05434798,141.71,141.7,30.6483]
[1723703912483,3.5269,141.76,141.7,30.6483]
[1723703913092,3.5269,141.76,141.71,3.5279]
[1723703913490,27.12,141.77,141.7,27.12]
[1723703913690,27.12,141.77,141.68,27.12]
[1723703913996,3.5271,141.75,141.67,37.7598]
[1723703914289,3.5758445,141.75,141.72,0.05280534]
[1723703914494,0.0487445,141.75,141.72,0.05280534]
[1723703915496,3.5758445,141.75,141.72,0.05280534]
[1723703915800,0.0487445,141.75,141.72,0.05280534]
[1723703917187,3.5274,141.74,141.72,0.05280534]
[1723703917792,3.5758445,141.75,141.72,0.05280534]
[1723703917998,0.0487445,141.75,141.72,0.05280534]
[1723703918196,7.87350736,141.75,141.72,0.05280534]
[1723703918497,3.5275,141.73,141.72,0.05280534]
[1723703919788,3.5758445,141.75,141.72,0.05280534]
[1723703919994,0.0487445,141.75,141.72,0.05280534]
[1723703920196,0.0487445,141.75,141.72,3.58040534]
[1723703920500,0.0487445,141.75,141.72,0.05280534]
[1723703920700,0.0487445,141.75,141.73,1.2759]
[1723703921400,0.0487445,141.75,141.73,4.8034]
[1723703921792,0.0487445,141.75,141.73,1.2759]
[1723703923090,0.0487445,141.75,141.73,4.8034]
[1723703923293,226.0,141.89,141.74,5.38]
[1723703923490,3.5247,141.85,141.8,3.5257]
[1723703923691,264.67318938,141.89,141.76,33.89]
[1723703923903,7.82655937,141.88,141.76,33.89]
[1723703924295,3.5249,141.84,141.79,3.5259]
[1723703924601,0.04960445,141.83,141.81,0.05007143]
[1723703925297,3.5253,141.82,141.81,0.05007143]
[1723703927003,0.04960445,141.83,141.81,0.05007143]
[1723703928805,3.57480445,141.83,141.81,0.05007143]
[1723703929104,0.04960445,141.83,141.81,0.05007143]
[1723703929301,3.5253,141.82,141.81,0.05007143]
[1723703930097,3.57480445,141.83,141.81,0.05007143]
[1723703930294,33.89,141.82,141.76,5.38]
[1723703930503,35.1963,141.82,141.71,1.3495]
[1723703930707,3.5265,141.78,141.73,4.8033]
[1723703931007,35.1963,141.82,141.73,1.2759]
[1723703931204,7.82778119,141.81,141.72,3.5277]
[1723703931401,7.82778119,141.81,141.76,0.05001233]
[1723703931706,0.04744335,141.79,141.76,0.05001233]
[1723703931908,3.5265,141.77,141.76,0.05001233]
[1723703936810,5.38,141.78,141.76,0.05001233]
[1723703937513,3.5265,141.77,141.76,0.05001233]
[1723703939405,3.5274,141.74,141.69,2.5995]
[1723703940003,3.5274,141.74,141.7,3.5283]
[1723703940203,3.5276,141.73,141.69,2.5995]
[1723703940409,0.04576062,141.72,141.7,0.05004021]
[1723703940903,3.57356062,141.72,141.7,0.05004021]
[1723703941307,0.04576062,141.72,141.7,0.05004021]
[1723703942210,0.04576062,141.72,141.7,3.57824021]
[1723703943711,0.04576062,141.72,141.7,0.05004021]
[1723703944310,0.04576062,141.72,141.7,3.57824021]
[1723703944515,0.04576062,141.72,141.7,0.05004021]
[1723703944812,3.528,141.71,141.7,0.05004021]
[1723703945416,3.528,141.71,141.62,1.3458]
[1723703945417,3.5293,141.66,141.62,1.3458]
[1723703945605,27.11,141.69,141.62,1.3458]
[1723703946610,0.04515586,141.67,141.64,0.04660713]
[1723703947321,3.5295,141.65,141.64,0.04660713]
[1723703948222,5.42515586,141.67,141.64,0.04660713]
[1723703948722,8.95435586,141.67,141.64,0.04660713]
[1723703949227,3.5293,141.66,141.64,0.04660713]
[1723703949424,5.42515586,141.67,141.64,0.04660713]
[1723703949818,0.04515586,141.67,141.64,3.57620713]
[1723703950423,3.57435586,141.67,141.64,0.04660713]
[1723703950619,0.04515586,141.67,141.64,0.04660713]
[1723703951319,27.15515586,141.67,141.64,0.04660713]
[1723703951522,3.5295,141.65,141.64,0.04660713]
[1723703951717,8.9095,141.65,141.64,0.04660713]
[1723703953731,3.5295,141.65,141.64,0.04660713]
[1723703955121,8.9094,141.66,141.64,0.04660713]
[1723703955328,0.04515586,141.67,141.64,0.04660713]
[1723703956233,0.04515586,141.67,141.64,3.57630713]
[1723703957032,3.57415586,141.67,141.64,3.57630713]
[1723703957623,0.04515586,141.67,141.64,3.57630713]
[1723703959832,3.57425586,141.67,141.64,0.04660713]
[1723703960132,0.04515586,141.67,141.64,0.04660713]
[1723703960435,3.5294,141.66,141.64,0.04660713]
[1723703960632,0.04515586,141.67,141.64,0.04660713]
[1723703961727,3.5294,141.66,141.64,0.04660713]
[1723703963534,0.04515586,141.67,141.64,0.04660713]
[1723703963729,33.88,141.65,141.55,2.5572]
[1723703964231,5.38,141.64,141.55,2.5572]
[1723703964431,5.38,141.64,141.57,3.5313]
[1723703964833,3.5303,141.62,141.58,3.5313]
[1723703965137,0.05081495,141.62,141.59,0.05036906]
[1723703965437,3.5308,141.61,141.59,0.05036906]
[1723703965824,3.58121495,141.62,141.59,0.05036906]
[1723703966136,0.05081495,141.62,141.59,0.05036906]
[1723703967737,3.5305,141.61,141.59,0.05036906]
[1723703968429,3.5308,141.6,141.59,0.05036906]
[1723703972141,3.5315,141.57,141.53,3.5323]
[1723703972333,33.93081495,141.62,141.51,36.5255]
[1723703972533,33.88,141.62,141.51,36.5255]
[1723703973046,33.88,141.62,141.51,40.08688443]
[1723703973241,33.88,141.62,141.55,3.5319]
[1723703973443,33.88,141.62,141.55,0.04450516]
[1723703973444,0.0445623,141.58,141.55,0.04450516]
[1723703973946,0.0445623,141.58,141.56,3.5316]
[1723703974136,0.0445623,141.58,141.55,0.04450516]
[1723703974846,0.0445623,141.58,141.56,3.5317]
[1723703975037,0.0445623,141.58,141.55,0.04450516]
[1723703975745,0.0445623,141.58,141.55,3.57630516]
[1723703977638,3.5758623,141.58,141.55,0.04450516]
[1723703978748,0.0445623,141.58,141.55,3.57650516]
[1723703979952,0.0445623,141.58,141.56,3.5317]
[1723703981147,0.0445623,141.58,141.55,3.57640516]
[1723703983249,0.0445623,141.58,141.56,3.5317]
[1723703983552,0.0445623,141.58,141.55,0.04450516]
[1723703983739,0.0445623,141.58,141.56,3.5316]
[1723703984747,0.0445623,141.58,141.55,3.57640516]
[1723703985860,0.0445623,141.58,141.56,3.5317]
[1723703986050,0.0445623,141.58,141.55,0.04450516]
[1723703986247,3.46002519,141.73,141.57,27.13]
[1723703986248,5.38,141.64,141.57,27.13]
[1723703986443,5.38,141.65,141.57,27.13]
[1723703986646,5.38,141.65,141.58,1.2461]
[1723703987054,8.9097,141.65,141.6,3.5305]
[1723703987251,8.9097,141.65,141.58,1.2461]
[1723703987650,0.04983978,141.64,141.61,3.57984149]
[1723703988653,0.04983978,141.64,141.62,3.5301]
[1723703988851,0.04983978,141.64,141.61,0.04934149]
[1723703989750,0.04983978,141.64,141.62,3.5303]
[1723703989946,0.04983978,141.64,141.61,0.04934149]
[1723703990952,0.04983978,141.64,141.62,3.5302]
[1723703991149,0.04983978,141.64,141.61,0.04934149]
[1723703991354,27.17983978,141.64,141.61,0.04934149]
[1723703991554,3.5302,141.63,141.61,0.04934149]
[1723703991758,27.17983978,141.64,141.61,0.04934149]
[1723703992058,30.70973978,141.64,141.61,0.04934149]
[1723703992259,3.57973978,141.64,141.61,0.04934149]
[1723703992462,0.04983978,141.64,141.61,3.57974149]
[1723703992854,0.04983978,141.64,141.61,0.04934149]
[1723703993451,27.17983978,141.64,141.61,0.04934149]
[1723703994763,30.70963978,141.64,141.61,0.04934149]
[1723703995861,27.17983978,141.64,141.61,3.57974149]
[1723703996463,0.04983978,141.64,141.61,3.57974149]
[1723703996860,3.57963978,141.64,141.61,3.57974149]
[1723703997062,3.57963978,141.64,141.61,0.04934149]
[1723703999758,0.04983978,141.64,141.61,0.04934149]
[1723703999960,0.04983978,141.64,141.61,3.57984149]
[1723704000162,0.04983978,141.64,141.61,0.04934149]
[1723704001070,0.04983978,141.64,141.62,3.5301]
[1723704001464,0.04983978,141.64,141.61,3.57974149]
[1723704001666,0.04983978,141.64,141.61,0.04934149]
[1723704001867,3.57973978,141.64,141.61,0.04934149]
[1723704002370,0.04983978,141.64,141.61,0.04934149]
[1723704003069,3.57963978,141.64,141.61,3.57964149]
[1723704003266,0.04983978,141.64,141.61,0.04934149]
[1723704003476,27.17983978,141.64,141.61,0.04934149]
[1723704003866,27.13,141.62,141.61,0.04934149]
[1723704004069,27.13,141.62,141.56,3.5317]
[1723704004260,3.5309,141.6,141.56,3.5317]
[1723704004665,3.5311,141.59,141.56,3.5317]
[1723704005075,27.13,141.6,141.55,3.5319]
[1723704005262,32.51,141.6,141.55,3.5319]
[1723704005572,3.58246151,141.59,141.56,0.04967541]
[1723704006862,0.05136151,141.59,141.56,0.04967541]
[1723704007371,0.05136151,141.59,141.58,3.5313]
[1723704007573,27.13,141.66,141.57,27.13]
[1723704007875,3.5298,141.64,141.6,3.5306]
[1723704008567,3.5298,141.64,141.61,0.04928837]
[1723704008771,0.04689497,141.63,141.61,0.04928837]
[1723704008970,3.57709497,141.63,141.61,0.04928837]
[1723704009173,0.04689497,141.63,141.61,0.04928837]
[1723704010275,3.57689497,141.63,141.61,0.04928837]
[1723704010678,0.04689497,141.63,141.61,0.04928837]
[1723704010975,30.6603,141.62,141.61,0.04928837]
[1723704011175,27.13,141.62,141.52,29.7068]
[1723704011376,32.51,141.62,141.52,29.7068]
[1723704011975,3.5309,141.6,141.56,3.5317]
[1723704012271,32.51,141.62,141.52,29.7068]
[1723704012474,0.04741225,141.59,141.57,0.0475628]
[1723704012975,3.57861225,141.59,141.57,0.0475628]
[1723704014478,0.04741225,141.59,141.57,0.0475628]
[1723704014979,0.04741225,141.59,141.57,3.5789628]
[1723704015176,0.04741225,141.59,141.57,0.0475628]
[1723704017679,0.04741225,141.59,141.58,3.5313]
[1723704019385,0.04741225,141.59,141.57,3.5790628]
[1723704019785,0.04741225,141.59,141.58,3.5313]
[1723704021083,0.04741225,141.59,141.57,0.0475628]
[1723704022683,3.57861225,141.59,141.57,0.0475628]
[1723704023489,0.04741225,141.59,141.57,0.0475628]
[1723704024179,3.5313,141.58,141.57,0.0475628]
[1723704025184,30.6613,141.58,141.57,0.0475628]
[1723704026089,30.6613,141.58,141.49,27.13]
[1723704026090,3.5319,141.56,141.49,27.13]
[1723704026386,3.5319,141.56,141.48,10.15450893]
[1723704026588,3.5319,141.56,141.48,37.28450893]
[1723704026589,30.6619,141.56,141.48,37.28450893]
[1723704026987,30.6619,141.56,141.52,3.5326]
[1723704027384,0.04966785,141.53,141.52,3.5326]
[1723704028093,0.04966785,141.53,141.48,33.7808]
[1723704028280,0.04966785,141.53,141.48,6.6508]
[1723704028488,0.04966785,141.53,141.48,1.2708]
[1723704028688,0.04966785,141.53,141.5,3.5332]
[1723704028993,0.04966785,141.53,141.48,1.2708]
[1723704029194,0.04966785,141.53,141.5,3.533]
[1723704030489,3.58216785,141.53,141.49,3.5334]
[1723704031687,3.58216785,141.53,141.48,3.5337]
[1723704031688,3.5328,141.52,141.48,3.5337]
[1723704031893,27.13,141.52,141.44,27.13]
[1723704032093,3.5332,141.51,141.47,3.5339]
[1723704032396,0.05031148,141.49,141.46,3.47891149]
[1723704032595,0.05031148,141.49,141.44,27.13]
[1723704032785,0.05031148,141.49,141.47,3.5339]
[1723704032982,0.05031148,141.49,141.44,27.13]
[1723704032983,0.05031148,141.49,141.46,3.4882369]
[1723704033183,0.05031148,141.49,141.44,27.13]
[1723704034092,0.05031148,141.49,141.48,3.5338]
[1723704034593,0.05031148,141.49,141.44,27.13]
[1723704034793,0.05031148,141.49,141.43,3.876]
[1723704034988,0.05031148,141.49,141.38,3.46331118]
[1723704034989,27.13,141.47,141.3,7.0762]
[1723704035190,27.13,141.45,141.36,27.13]
[1723704035392,32.51,141.45,141.36,27.13]
[1723704035893,0.04568653,141.42,141.36,27.13]
[1723704036687,0.04568653,141.42,141.33,3.9834]
[1723704036688,0.04568653,141.42,141.34,27.13]
[1723704037293,3.5354,141.42,141.34,27.13]
[1723704037892,0.05168633,141.39,141.34,27.13]
[1723704038198,0.05168633,141.39,141.38,3.5362]
[1723704039289,0.05168633,141.39,141.34,27.13]
[1723704039493,0.05168633,141.39,141.31,27.13]
[1723704039691,3.5364,141.38,141.29,27.13]
[1723704039896,3.44826366,141.38,141.25,3.7681]
[1723704040092,3.44826366,141.38,141.28,27.13]
[1723704040301,0.04883924,141.35,141.29,27.13]
[1723704040487,0.04883924,141.35,141.31,27.13]
[1723704040796,0.04883924,141.35,141.34,3.5373]
[1723704040994,6.7325,141.42,141.33,27.13]
[1723704041395,3.5359,141.4,141.35,3.5368]
[1723704042000,3.5358,141.4,141.35,3.5368]
[1723704042195,27.13,141.41,141.34,3.5372]
[1723704042502,0.05039222,141.39,141.36,0.04781827]
[1723704043398,27.13,141.37,141.36,0.04781827]
[1723704043598,27.13,141.37,141.27,32.51]
[1723704043803,3.5369,141.36,141.31,3.5378]